[Event "Live Chess"]
[Site "Chess.com"]
[Date "2024.06.02"]
[Round "-"]
[White "silunn"]
[Black "Mikhail_Golubev"]
[Result "0-1"]
[WhiteElo "2174"]
[BlackElo "2515"]
[TimeControl "300"]
[EndTime "3:46:20 PDT"]
[Termination "Mikhail_Golubev won by resignation"]

1. e4 {[%clk 0:04:58.5]} 1... c5 {[%clk 0:04:58.2]} 2. Nf3 {[%clk 0:04:57.4]}
2... d6 {[%clk 0:04:55.7]} 3. d4 {[%clk 0:04:56.8]} 3... Nf6 {[%clk 0:04:54.9]}
4. Nc3 {[%clk 0:04:47.1]} 4... cxd4 {[%clk 0:04:53]} 5. Nxd4 {[%clk 0:04:44]}
5... g6 {[%clk 0:04:52.3]} 6. Be2 {[%clk 0:04:41.2]} 6... Bg7 {[%clk 0:04:50.4]}
7. Be3 {[%clk 0:04:40.8]} 7... Nc6 {[%clk 0:04:49.3]} 8. O-O {[%clk 0:04:39.4]}
8... O-O {[%clk 0:04:47.5]} 9. Nb3 {[%clk 0:04:36.6]} 9... Be6 {[%clk
0:04:38.3]} 10. f4 {[%clk 0:04:34.7]} 10... Rc8 {[%clk 0:04:35.8]} 11. Kh1
{[%clk 0:04:30.9]} 11... a6 {[%clk 0:04:02.9]} 12. a4 {[%clk 0:04:09.1]} 12...
Na5 {[%clk 0:03:55.5]} 13. Nd4 {[%clk 0:03:41]} 13... Bc4 {[%clk 0:03:52.7]} 14.
Bf3 {[%clk 0:03:03.2]} 14... Bxf1 {[%clk 0:03:50.2]} 15. Qxf1 {[%clk 0:03:00.4]}
15... Nc4 {[%clk 0:03:40.5]} 16. Bc1 {[%clk 0:02:54.6]} 16... Qb6 {[%clk
0:03:33.6]} 17. Nb3 {[%clk 0:02:44.7]} 17... e6 {[%clk 0:03:14.3]} 18. a5 {[%clk
0:02:39.4]} 18... Qc7 {[%clk 0:03:13.1]} 19. Qe2 {[%clk 0:02:31.9]} 19... Nd7
{[%clk 0:03:10.8]} 20. Na4 {[%clk 0:02:28.9]} 20... Nxa5 {[%clk 0:03:04.1]} 21.
Be3 {[%clk 0:02:14]} 21... b5 {[%clk 0:02:38.2]} 22. Nc3 {[%clk 0:01:47.2]}
22... Nc4 {[%clk 0:02:32.2]} 23. Bc1 {[%clk 0:01:41.4]} 23... Nxb2 {[%clk
0:02:24.5]} 24. Bxb2 {[%clk 0:01:39.6]} 24... Bxc3 {[%clk 0:02:22.3]} 25. Bxc3
{[%clk 0:01:36.6]} 25... Qxc3 {[%clk 0:02:22.2]} 26. Ra2 {[%clk 0:01:32.5]}
26... Nc5 {[%clk 0:02:12.9]} 27. Na5 {[%clk 0:01:24.9]} 27... Na4 {[%clk
0:01:50.5]} 28. Nb3 {[%clk 0:01:15.3]} 28... Rfd8 {[%clk 0:01:46.1]} 29. h3
{[%clk 0:01:14.6]} 29... d5 {[%clk 0:01:44.7]} 30. exd5 {[%clk 0:01:07.4]} 30...
exd5 {[%clk 0:01:44.6]} 31. Kh2 {[%clk 0:01:06.7]} 31... Qf6 {[%clk 0:01:30]}
32. g3 {[%clk 0:01:01.8]} 32... Nc3 {[%clk 0:01:26.3]} 0-1

[Event "Live Chess"]
[Site "Chess.com"]
[Date "2024.06.02"]
[Round "-"]
[White "lateforthesky"]
[Black "elis06"]
[Result "0-1"]
[WhiteElo "2071"]
[BlackElo "2322"]
[TimeControl "300"]
[EndTime "3:46:25 PDT"]
[Termination "elis06 won by resignation"]

1. e4 {[%clk 0:04:54.6]} 1... c6 {[%clk 0:04:59]} 2. Nf3 {[%clk 0:04:52.3]} 2...
d5 {[%clk 0:04:58.1]} 3. exd5 {[%clk 0:04:51.3]} 3... cxd5 {[%clk 0:04:57.3]} 4.
Ne5 {[%clk 0:04:48.1]} 4... Nc6 {[%clk 0:04:54.7]} 5. d4 {[%clk 0:04:45.4]} 5...
Nf6 {[%clk 0:04:51.1]} 6. Bb5 {[%clk 0:04:43.8]} 6... Bd7 {[%clk 0:04:49.8]} 7.
Nxd7 {[%clk 0:04:42.1]} 7... Qxd7 {[%clk 0:04:48.8]} 8. c3 {[%clk 0:04:41.4]}
8... e6 {[%clk 0:04:47.9]} 9. O-O {[%clk 0:04:39.1]} 9... Bd6 {[%clk 0:04:47.1]}
10. f4 {[%clk 0:04:31.8]} 10... Ne4 {[%clk 0:04:40.9]} 11. Nd2 {[%clk 0:04:29]}
11... f5 {[%clk 0:04:39.7]} 12. Nf3 {[%clk 0:04:26.8]} 12... O-O-O {[%clk
0:04:37.9]} 13. Ne5 {[%clk 0:04:23.3]} 13... Bxe5 {[%clk 0:04:36.6]} 14. fxe5
{[%clk 0:03:57.5]} 14... g5 {[%clk 0:04:29.1]} 15. Qa4 {[%clk 0:03:54.3]} 15...
a6 {[%clk 0:04:22.1]} 16. Bd3 {[%clk 0:03:44.3]} 16... g4 {[%clk 0:04:14.4]} 17.
Qc2 {[%clk 0:03:40.6]} 17... h5 {[%clk 0:04:12]} 18. Bf4 {[%clk 0:03:36.8]}
18... Kb8 {[%clk 0:04:08.6]} 19. b4 {[%clk 0:03:31.1]} 19... Rc8 {[%clk
0:04:05.5]} 20. Qb3 {[%clk 0:03:26.7]} 20... Na7 {[%clk 0:03:44]} 21. Rfc1
{[%clk 0:03:18.8]} 21... h4 {[%clk 0:03:36.4]} 22. a4 {[%clk 0:03:16.7]} 22...
g3 {[%clk 0:03:30.5]} 23. h3 {[%clk 0:03:14.9]} 23... Rc7 {[%clk 0:03:15.5]} 24.
b5 {[%clk 0:03:10.2]} 24... axb5 {[%clk 0:03:12]} 25. axb5 {[%clk 0:03:08.6]}
25... b6 {[%clk 0:03:09.7]} 26. Ra6 {[%clk 0:03:05.1]} 26... Rb7 {[%clk
0:03:07.6]} 27. Qa3 {[%clk 0:02:49.6]} 27... Rc8 {[%clk 0:03:04.6]} 28. Bxe4
{[%clk 0:02:09.1]} 28... dxe4 {[%clk 0:02:59.9]} 29. Qd6+ {[%clk 0:02:07.7]}
29... Rcc7 {[%clk 0:02:26.3]} 30. c4 {[%clk 0:01:55.4]} 30... Nc8 {[%clk
0:02:10]} 31. Qxd7 {[%clk 0:01:52.7]} 31... Rxd7 {[%clk 0:02:08.4]} 32. d5
{[%clk 0:01:51.1]} 32... Re7 {[%clk 0:01:58]} 33. d6 {[%clk 0:01:48]} 33... Rh7
{[%clk 0:01:52.3]} 34. c5 {[%clk 0:01:33.8]} 34... bxc5 {[%clk 0:01:49]} 35.
Rxc5 {[%clk 0:01:32.9]} 35... Nb6 {[%clk 0:01:35.1]} 36. Be3 {[%clk 0:01:20]}
36... Nd7 {[%clk 0:01:26.2]} 37. Rc7 {[%clk 0:01:15.9]} 37... Rxc7 {[%clk
0:01:18.2]} 38. dxc7+ {[%clk 0:01:13.8]} 38... Kxc7 {[%clk 0:01:17.2]} 39. Rxe6
{[%clk 0:01:09.9]} 39... Rf7 {[%clk 0:01:02.7]} 40. b6+ {[%clk 0:01:03.4]} 40...
Kb7 {[%clk 0:01:01.4]} 41. Kf1 {[%clk 0:01:02.8]} 41... f4 {[%clk 0:01:00.2]}
42. Bd4 {[%clk 0:01:01.7]} 42... f3 {[%clk 0:00:58.9]} 43. gxf3 {[%clk
0:00:59.5]} 43... exf3 {[%clk 0:00:57.3]} 44. Rg6 {[%clk 0:00:54.4]} 44... Re7
{[%clk 0:00:54.6]} 45. e6 {[%clk 0:00:52.3]} 45... Nf8 {[%clk 0:00:52]} 46. Rg7
{[%clk 0:00:32.9]} 46... Rxg7 {[%clk 0:00:49.1]} 47. Bxg7 {[%clk 0:00:32.8]}
47... Nxe6 {[%clk 0:00:48.6]} 48. Bf6 {[%clk 0:00:30.2]} 48... Nf4 {[%clk
0:00:39.3]} 49. Bxh4 {[%clk 0:00:28.2]} 49... g2+ {[%clk 0:00:38.4]} 50. Kf2
{[%clk 0:00:27.3]} 50... Nxh3+ {[%clk 0:00:37.7]} 0-1

[Event "Live Chess"]
[Site "Chess.com"]
[Date "2024.06.02"]
[Round "-"]
[White "Tatarinov_Maxim"]
[Black "Kyrylo7770"]
[Result "1-0"]
[WhiteElo "2311"]
[BlackElo "1644"]
[TimeControl "300"]
[EndTime "3:46:52 PDT"]
[Termination "Tatarinov_Maxim won by resignation"]

1. Nf3 {[%clk 0:04:57.2]} 1... d5 {[%clk 0:04:59.1]} 2. g3 {[%clk 0:04:56.1]}
2... Bg4 {[%clk 0:04:58.4]} 3. Bg2 {[%clk 0:04:55.3]} 3... e6 {[%clk 0:04:58]}
4. O-O {[%clk 0:04:54.4]} 4... c5 {[%clk 0:04:57.5]} 5. c4 {[%clk 0:04:53.3]}
5... Nc6 {[%clk 0:04:56.9]} 6. cxd5 {[%clk 0:04:51.1]} 6... Qxd5 {[%clk
0:04:56.4]} 7. Nc3 {[%clk 0:04:48.9]} 7... Qd8 {[%clk 0:04:55.5]} 8. Qa4 {[%clk
0:04:47.4]} 8... Rb8 {[%clk 0:04:53.1]} 9. Qxg4 {[%clk 0:04:45.4]} 9... Nf6
{[%clk 0:04:51.3]} 10. Qa4 {[%clk 0:04:44.1]} 10... Be7 {[%clk 0:04:49.5]} 11.
Ne5 {[%clk 0:04:43]} 11... O-O {[%clk 0:04:47.1]} 12. Bxc6 {[%clk 0:04:42]}
12... bxc6 {[%clk 0:04:46.6]} 13. Nxc6 {[%clk 0:04:41.6]} 13... Qc7 {[%clk
0:04:45.9]} 14. Nxb8 {[%clk 0:04:40.6]} 14... Rxb8 {[%clk 0:04:45.7]} 15. d3
{[%clk 0:04:37.5]} 15... Rb4 {[%clk 0:04:45]} 16. Qc2 {[%clk 0:04:32]} 16... Qe5
{[%clk 0:04:44.1]} 17. a3 {[%clk 0:04:15.7]} 17... Rg4 {[%clk 0:04:41.4]} 18. b4
{[%clk 0:04:11.5]} 18... Qh5 {[%clk 0:04:38.4]} 19. Ne4 {[%clk 0:04:03.2]} 19...
Rxe4 {[%clk 0:04:31.8]} 20. dxe4 {[%clk 0:04:03.1]} 20... Ng4 {[%clk 0:04:30.9]}
21. h4 {[%clk 0:03:54.5]} 21... Bxh4 {[%clk 0:04:28.4]} 22. Qxc5 {[%clk
0:03:53.6]} 22... h6 {[%clk 0:04:26.3]} 23. Qxh5 {[%clk 0:03:51.8]} 23... Bg5
{[%clk 0:04:22.1]} 24. Qxg4 {[%clk 0:03:50.1]} 1-0

[Event "Live Chess"]
[Site "Chess.com"]
[Date "2024.06.02"]
[Round "-"]
[White "Nathaniel250"]
[Black "PureDashingOctopus"]
[Result "0-1"]
[WhiteElo "1523"]
[BlackElo "2270"]
[TimeControl "300"]
[EndTime "3:46:56 PDT"]
[Termination "PureDashingOctopus won by checkmate"]

1. c4 {[%clk 0:04:58]} 1... c5 {[%clk 0:04:58.8]} 2. Nc3 {[%clk 0:04:56.1]} 2...
Nc6 {[%clk 0:04:57.9]} 3. g3 {[%clk 0:04:54.4]} 3... g6 {[%clk 0:04:57]} 4. Bg2
{[%clk 0:04:53.2]} 4... Bg7 {[%clk 0:04:56.6]} 5. e4 {[%clk 0:04:49.1]} 5... e5
{[%clk 0:04:55.6]} 6. Nge2 {[%clk 0:04:47.2]} 6... Nge7 {[%clk 0:04:54.5]} 7.
O-O {[%clk 0:04:42.6]} 7... O-O {[%clk 0:04:54.1]} 8. d3 {[%clk 0:04:40.9]} 8...
d6 {[%clk 0:04:53.5]} 9. h3 {[%clk 0:04:39.1]} 9... Be6 {[%clk 0:04:52.9]} 10.
Kh2 {[%clk 0:04:34.8]} 10... Qd7 {[%clk 0:04:52.2]} 11. f4 {[%clk 0:04:31.4]}
11... f5 {[%clk 0:04:48.7]} 12. a3 {[%clk 0:04:15.3]} 12... Nd4 {[%clk
0:04:44.1]} 13. Nxd4 {[%clk 0:04:13.6]} 13... cxd4 {[%clk 0:04:43.4]} 14. Ne2
{[%clk 0:04:11.4]} 14... fxe4 {[%clk 0:04:43]} 15. Bxe4 {[%clk 0:04:07.5]} 15...
d5 {[%clk 0:04:42.5]} 16. cxd5 {[%clk 0:04:06]} 16... Bxh3 {[%clk 0:04:39.4]}
17. Qb3 {[%clk 0:03:44.4]} 17... Bxf1 {[%clk 0:04:36.2]} 18. d6+ {[%clk
0:03:40.2]} 18... Kh8 {[%clk 0:04:35.1]} 19. dxe7 {[%clk 0:03:38.8]} 19... Qxe7
{[%clk 0:04:34.4]} 20. Ng1 {[%clk 0:03:20.3]} 20... exf4 {[%clk 0:04:28.8]} 21.
Bxb7 {[%clk 0:03:16.4]} 21... fxg3+ {[%clk 0:04:27.2]} 22. Kxg3 {[%clk
0:03:15.2]} 22... Be5+ {[%clk 0:04:25.8]} 23. Kg4 {[%clk 0:03:14]} 23... h5#
{[%clk 0:04:22.6]} 0-1

[Event "Live Chess"]
[Site "Chess.com"]
[Date "2024.06.02"]
[Round "-"]
[White "Purple1szed"]
[Black "WeakOldFinished"]
[Result "0-1"]
[WhiteElo "2041"]
[BlackElo "2187"]
[TimeControl "300"]
[EndTime "3:47:45 PDT"]
[Termination "WeakOldFinished won by resignation"]

1. e4 {[%clk 0:04:58.4]} 1... Nf6 {[%clk 0:04:57.4]} 2. e5 {[%clk 0:04:57.4]}
2... Nd5 {[%clk 0:04:56.4]} 3. d4 {[%clk 0:04:57.2]} 3... d6 {[%clk 0:04:55.7]}
4. c4 {[%clk 0:04:57]} 4... Nb6 {[%clk 0:04:54.1]} 5. f4 {[%clk 0:04:56.9]} 5...
g5 {[%clk 0:04:51.8]} 6. exd6 {[%clk 0:04:48.5]} 6... Qxd6 {[%clk 0:04:49.9]} 7.
fxg5 {[%clk 0:04:46.6]} 7... Bg7 {[%clk 0:04:43.8]} 8. Nf3 {[%clk 0:04:45.2]}
8... Bg4 {[%clk 0:04:40.5]} 9. Be3 {[%clk 0:04:44.4]} 9... Nc6 {[%clk
0:04:33.5]} 10. c5 {[%clk 0:04:42.6]} 10... Qe6 {[%clk 0:04:32.1]} 11. cxb6
{[%clk 0:04:33.3]} 11... Qxe3+ {[%clk 0:04:29.5]} 12. Qe2 {[%clk 0:04:33.2]}
12... Qxe2+ {[%clk 0:04:27.9]} 13. Bxe2 {[%clk 0:04:33.1]} 13... axb6 {[%clk
0:04:26.1]} 14. O-O {[%clk 0:04:28.2]} 14... Nxd4 {[%clk 0:04:21.7]} 15. Nxd4
{[%clk 0:04:04.6]} 15... Bxd4+ {[%clk 0:04:21.6]} 0-1

[Event "Live Chess"]
[Site "Chess.com"]
[Date "2024.06.02"]
[Round "-"]
[White "SavagePawn7"]
[Black "raclement"]
[Result "0-1"]
[WhiteElo "678"]
[BlackElo "1734"]
[TimeControl "300"]
[EndTime "3:47:51 PDT"]
[Termination "raclement won by resignation"]

1. e4 {[%clk 0:04:54.3]} 1... c5 {[%clk 0:04:56]} 2. d4 {[%clk 0:04:52.6]} 2...
cxd4 {[%clk 0:04:54.3]} 3. c3 {[%clk 0:04:46]} 3... d3 {[%clk 0:04:49.1]} 4.
Bxd3 {[%clk 0:04:42.5]} 4... g6 {[%clk 0:04:47.9]} 5. Nf3 {[%clk 0:04:30.5]}
5... Bg7 {[%clk 0:04:44.7]} 6. Be3 {[%clk 0:04:22]} 6... Nc6 {[%clk 0:04:41.5]}
7. O-O {[%clk 0:03:54.7]} 7... Nf6 {[%clk 0:04:39.7]} 8. Bb5 {[%clk 0:03:45.3]}
8... O-O {[%clk 0:04:35.6]} 9. Bxc6 {[%clk 0:03:36.4]} 9... dxc6 {[%clk
0:04:32.4]} 10. Qxd8 {[%clk 0:03:34.3]} 10... Rxd8 {[%clk 0:04:30.3]} 11. Nbd2
{[%clk 0:03:30.5]} 11... b6 {[%clk 0:04:14.9]} 12. Ne5 {[%clk 0:03:21.2]} 12...
Bb7 {[%clk 0:04:10.6]} 13. f3 {[%clk 0:03:19.2]} 13... c5 {[%clk 0:04:02.7]} 14.
Rad1 {[%clk 0:03:10.8]} 14... Nd7 {[%clk 0:04:00.1]} 15. Nxd7 {[%clk 0:03:07]}
15... Rxd7 {[%clk 0:03:58.6]} 16. Nc4 {[%clk 0:03:03.1]} 16... Rad8 {[%clk
0:03:55.2]} 17. Nd2 {[%clk 0:02:45.2]} 17... Ba6 {[%clk 0:03:52.8]} 18. Rfe1
{[%clk 0:02:41.8]} 18... h6 {[%clk 0:03:40.5]} 19. g4 {[%clk 0:02:36.6]} 19...
e6 {[%clk 0:03:31.7]} 20. h4 {[%clk 0:02:34.8]} 20... Bb7 {[%clk 0:03:29.3]} 21.
Nc4 {[%clk 0:02:19]} 21... Ba6 {[%clk 0:03:21.6]} 22. Rxd7 {[%clk 0:02:15.3]}
22... Rxd7 {[%clk 0:03:18.9]} 23. b3 {[%clk 0:02:06.7]} 23... Bxc4 {[%clk
0:03:16.8]} 24. bxc4 {[%clk 0:02:04.9]} 24... Kh7 {[%clk 0:03:10.4]} 25. f4
{[%clk 0:01:53.6]} 25... Bxc3 {[%clk 0:03:07.7]} 26. Rc1 {[%clk 0:01:49.9]}
26... Bd4 {[%clk 0:03:05.9]} 27. Bxd4 {[%clk 0:01:46.4]} 27... Rxd4 {[%clk
0:03:03.1]} 0-1

[Event "Live Chess"]
[Site "Chess.com"]
[Date "2024.06.02"]
[Round "-"]
[White "KeithArkell"]
[Black "CarmelJane"]
[Result "1-0"]
[WhiteElo "2411"]
[BlackElo "2068"]
[TimeControl "300"]
[EndTime "3:47:59 PDT"]
[Termination "KeithArkell won by checkmate"]

1. d4 {[%clk 0:04:57.7]} 1... Nf6 {[%clk 0:04:59.1]} 2. Nf3 {[%clk 0:04:56.9]}
2... g6 {[%clk 0:04:57.7]} 3. c4 {[%clk 0:04:56.2]} 3... Bg7 {[%clk 0:04:55.6]}
4. g3 {[%clk 0:04:55.7]} 4... c5 {[%clk 0:04:52.5]} 5. Nc3 {[%clk 0:04:52.5]}
5... cxd4 {[%clk 0:04:48.8]} 6. Nxd4 {[%clk 0:04:51.6]} 6... Nc6 {[%clk
0:04:48.1]} 7. Bg2 {[%clk 0:04:50.6]} 7... O-O {[%clk 0:04:45.8]} 8. O-O {[%clk
0:04:49.4]} 8... Nxd4 {[%clk 0:04:44.1]} 9. Qxd4 {[%clk 0:04:47.5]} 9... d6
{[%clk 0:04:43]} 10. Qh4 {[%clk 0:04:46.2]} 10... Rb8 {[%clk 0:04:36]} 11. Bh6
{[%clk 0:04:43.6]} 11... Nh5 {[%clk 0:04:27.5]} 12. Bxg7 {[%clk 0:04:42.1]}
12... Nxg7 {[%clk 0:04:27.4]} 13. Nd5 {[%clk 0:04:40.6]} 13... Nf5 {[%clk
0:04:20.4]} 14. Qe4 {[%clk 0:04:39.1]} 14... e6 {[%clk 0:04:15.2]} 15. Nc3
{[%clk 0:04:37.4]} 15... b6 {[%clk 0:04:09.2]} 16. Rfd1 {[%clk 0:04:35.3]} 16...
Bb7 {[%clk 0:04:07.1]} 17. Qc2 {[%clk 0:04:33.6]} 17... Bxg2 {[%clk 0:04:03.7]}
18. Kxg2 {[%clk 0:04:33.5]} 18... Qc7 {[%clk 0:03:58]} 19. e4 {[%clk 0:04:31.6]}
19... Ng7 {[%clk 0:03:39.1]} 20. b3 {[%clk 0:04:29.1]} 20... f5 {[%clk
0:03:26.2]} 21. Rd3 {[%clk 0:04:25]} 21... fxe4 {[%clk 0:03:24]} 22. Nxe4 {[%clk
0:04:24.2]} 22... d5 {[%clk 0:03:15.9]} 23. Ng5 {[%clk 0:04:19]} 23... Qe7
{[%clk 0:03:07.1]} 24. Nf3 {[%clk 0:04:17]} 24... Rbc8 {[%clk 0:03:00.1]} 25.
Re1 {[%clk 0:04:16]} 25... Qf6 {[%clk 0:02:47.5]} 26. Ne5 {[%clk 0:03:58.3]}
26... Qf5 {[%clk 0:02:05.3]} 27. Rd2 {[%clk 0:03:49.5]} 27... dxc4 {[%clk
0:01:55.5]} 28. bxc4 {[%clk 0:03:45.3]} 28... Qh5 {[%clk 0:01:26.9]} 29. Rd7
{[%clk 0:03:35.9]} 29... Rc5 {[%clk 0:01:24.7]} 30. f4 {[%clk 0:03:33.9]} 30...
Nf5 {[%clk 0:01:21.8]} 31. Qe4 {[%clk 0:03:24.6]} 31... Rfc8 {[%clk 0:01:11.4]}
32. Nd3 {[%clk 0:03:21.2]} 32... Rxc4 {[%clk 0:01:08.3]} 33. Qxe6+ {[%clk
0:03:20.2]} 33... Kh8 {[%clk 0:01:07.2]} 34. Qf6+ {[%clk 0:03:12.5]} 34... Kg8
{[%clk 0:01:02.4]} 35. Rd8+ {[%clk 0:03:11.5]} 35... Rxd8 {[%clk 0:00:58.9]} 36.
Qxd8+ {[%clk 0:03:10.2]} 36... Kg7 {[%clk 0:00:57.2]} 37. Qd7+ {[%clk
0:02:56.2]} 37... Kh6 {[%clk 0:00:56]} 38. Rf1 {[%clk 0:02:40.9]} 38... Qg4
{[%clk 0:00:51.8]} 39. Kg1 {[%clk 0:02:17.3]} 39... Rc2 {[%clk 0:00:37.6]} 40.
Nf2 {[%clk 0:01:48.2]} 40... Qf3 {[%clk 0:00:28.8]} 41. Qd3 {[%clk 0:01:40.9]}
41... Qxd3 {[%clk 0:00:14.6]} 42. Nxd3 {[%clk 0:01:40.8]} 42... Rxa2 {[%clk
0:00:13.7]} 43. Re1 {[%clk 0:01:36.2]} 43... Nd4 {[%clk 0:00:12.9]} 44. Re7
{[%clk 0:01:31.7]} 44... Nf3+ {[%clk 0:00:12.2]} 45. Kf1 {[%clk 0:01:30.9]}
45... a5 {[%clk 0:00:11.4]} 46. g4 {[%clk 0:01:27.3]} 46... Nd2+ {[%clk
0:00:11]} 47. Ke1 {[%clk 0:01:25.3]} 47... Nf3+ {[%clk 0:00:10.3]} 48. Kf1
{[%clk 0:01:24.6]} 48... Nxh2+ {[%clk 0:00:10]} 49. Ke1 {[%clk 0:01:22.7]} 49...
Nxg4 {[%clk 0:00:09.9]} 50. Rb7 {[%clk 0:01:19.5]} 50... Ra3 {[%clk 0:00:09]}
51. Kd2 {[%clk 0:01:16.7]} 51... b5 {[%clk 0:00:07.8]} 52. Nc5 {[%clk
0:01:13.1]} 52... Ra2+ {[%clk 0:00:07.7]} 53. Kd3 {[%clk 0:01:09]} 53... b4
{[%clk 0:00:07.6]} 54. Ne6 {[%clk 0:01:08.2]} 54... Nf2+ {[%clk 0:00:07]} 55.
Kc4 {[%clk 0:01:05.9]} 55... b3 {[%clk 0:00:05.9]} 56. Ng5 {[%clk 0:01:04.8]}
56... b2 {[%clk 0:00:05.1]} 57. Rxh7# {[%clk 0:01:03.3]} 1-0

[Event "Live Chess"]
[Site "Chess.com"]
[Date "2024.06.02"]
[Round "-"]
[White "JohanKjeldahl"]
[Black "Ferrarifan27"]
[Result "0-1"]
[WhiteElo "1794"]
[BlackElo "2151"]
[TimeControl "300"]
[EndTime "3:48:01 PDT"]
[Termination "Ferrarifan27 won by resignation"]

1. c4 {[%clk 0:04:57.4]} 1... Nf6 {[%clk 0:04:58]} 2. Nc3 {[%clk 0:04:56]} 2...
e6 {[%clk 0:04:57]} 3. e4 {[%clk 0:04:54]} 3... Nc6 {[%clk 0:04:53.2]} 4. d4
{[%clk 0:04:50]} 4... Bb4 {[%clk 0:04:52.1]} 5. e5 {[%clk 0:04:47.6]} 5... Ne4
{[%clk 0:04:46]} 6. Qd3 {[%clk 0:04:39.3]} 6... Nxc3 {[%clk 0:04:44.3]} 7. bxc3
{[%clk 0:04:37.4]} 7... Be7 {[%clk 0:04:39.7]} 8. f4 {[%clk 0:04:36.1]} 8... d6
{[%clk 0:04:36.9]} 9. Nf3 {[%clk 0:04:18.3]} 9... dxe5 {[%clk 0:04:35.3]} 10.
fxe5 {[%clk 0:04:16.9]} 10... O-O {[%clk 0:04:28.2]} 11. Be2 {[%clk 0:04:14]}
11... b6 {[%clk 0:04:25.8]} 12. Qe4 {[%clk 0:04:10.6]} 12... Bb7 {[%clk
0:04:23.8]} 13. Bd3 {[%clk 0:04:09.5]} 13... g6 {[%clk 0:04:21.7]} 14. Bh6
{[%clk 0:04:02.8]} 14... Re8 {[%clk 0:04:11]} 15. O-O {[%clk 0:04:00.6]} 15...
Na5 {[%clk 0:04:04.3]} 16. Qe2 {[%clk 0:03:58.2]} 16... c5 {[%clk 0:03:53.3]}
17. Rad1 {[%clk 0:03:47.4]} 17... Qc7 {[%clk 0:03:47]} 18. Be4 {[%clk
0:03:34.9]} 18... Bxe4 {[%clk 0:03:40.4]} 19. Qxe4 {[%clk 0:03:33.6]} 19... cxd4
{[%clk 0:03:35.5]} 20. Nxd4 {[%clk 0:03:26.4]} 20... Nxc4 {[%clk 0:03:25.1]} 21.
Kh1 {[%clk 0:03:23.9]} 21... Qxe5 {[%clk 0:03:21.5]} 22. Qf3 {[%clk 0:03:09.4]}
22... f5 {[%clk 0:02:38]} 23. Nc6 {[%clk 0:03:06.6]} 23... Qf6 {[%clk
0:02:27.7]} 24. Nxe7+ {[%clk 0:03:01.9]} 24... Qxe7 {[%clk 0:02:26.5]} 25. Rd4
{[%clk 0:02:55.7]} 25... Rac8 {[%clk 0:02:20.7]} 26. Qf4 {[%clk 0:02:48.7]}
26... e5 {[%clk 0:02:15.1]} 0-1

[Event "Live Chess"]
[Site "Chess.com"]
[Date "2024.06.02"]
[Round "-"]
[White "SimonBoy1"]
[Black "RamsayFlayer"]
[Result "1-0"]
[WhiteElo "1547"]
[BlackElo "1924"]
[TimeControl "300"]
[EndTime "3:48:08 PDT"]
[Termination "SimonBoy1 won by resignation"]

1. e4 {[%clk 0:04:57.8]} 1... e5 {[%clk 0:04:59.4]} 2. Nf3 {[%clk 0:04:56.9]}
2... Nc6 {[%clk 0:04:59]} 3. Bc4 {[%clk 0:04:56.4]} 3... Nf6 {[%clk 0:04:58.3]}
4. d3 {[%clk 0:04:55.6]} 4... Bc5 {[%clk 0:04:57.1]} 5. O-O {[%clk 0:04:55.1]}
5... d6 {[%clk 0:04:55.9]} 6. c3 {[%clk 0:04:54.7]} 6... Bg4 {[%clk 0:04:54.7]}
7. Bg5 {[%clk 0:04:53.3]} 7... h6 {[%clk 0:04:53]} 8. Bh4 {[%clk 0:04:52.5]}
8... g5 {[%clk 0:04:51.8]} 9. Bg3 {[%clk 0:04:48.9]} 9... Nh5 {[%clk 0:04:50.2]}
10. Nbd2 {[%clk 0:04:45.7]} 10... Nxg3 {[%clk 0:04:49]} 11. hxg3 {[%clk
0:04:43.9]} 11... Qd7 {[%clk 0:04:39.2]} 12. b4 {[%clk 0:04:35.4]} 12... Bb6
{[%clk 0:04:34.8]} 13. a4 {[%clk 0:04:28.4]} 13... a6 {[%clk 0:04:31]} 14. Re1
{[%clk 0:04:21.3]} 14... O-O-O {[%clk 0:04:19.1]} 15. b5 {[%clk 0:04:08.9]}
15... axb5 {[%clk 0:04:17.5]} 16. axb5 {[%clk 0:04:08.8]} 16... Na5 {[%clk
0:04:17]} 17. Nb3 {[%clk 0:04:00.4]} 17... Bxf2+ {[%clk 0:03:28.6]} 18. Kxf2
{[%clk 0:03:53.4]} 18... b6 {[%clk 0:03:27.7]} 19. Nxa5 {[%clk 0:03:50.9]} 19...
bxa5 {[%clk 0:03:26]} 20. Rxa5 {[%clk 0:03:47.3]} 20... Qe7 {[%clk 0:03:07]} 21.
Ra8+ {[%clk 0:03:20.3]} 21... Kd7 {[%clk 0:03:04.9]} 22. Nxe5+ {[%clk
0:03:03.8]} 22... Qxe5 {[%clk 0:02:53.5]} 23. Qxg4+ {[%clk 0:03:01.7]} 23... Ke7
{[%clk 0:02:49.4]} 24. Rxd8 {[%clk 0:02:50.9]} 24... Rxd8 {[%clk 0:02:37.7]} 25.
Qf5 {[%clk 0:02:49]} 1-0